fUST/lending_fUST_20240728
["ID","MTS","AMOUNT","RATE_DAILY","PERIOD"]
[333457601,1722144653272,-505.74488057,0.0001452,2]
[333457602,1722144653284,-500.0,0.0001452,2]
[333457603,1722144653294,-3097.72,0.0001452,2]
[333457604,1722144653304,-500.0,0.0001452,2]
[333457605,1722144653314,-4974.02,0.0001452,2]
[333457606,1722144653324,-1453.72,0.0001452,2]
[333457607,1722144653334,-505.96184749,0.0001452,2]
[333457608,1722144653344,-500.0,0.0001452,2]
[333457609,1722144653354,-500.0,0.0001452,2]
[333457610,1722144653364,-500.0,0.0001452,2]
[333457611,1722144653374,-500.0,0.0001452,2]
[333457612,1722144653385,-2020.68,0.0001452,2]
[333457613,1722144653395,-500.0,0.0001452,2]
[333457614,1722144653404,-1283.19,0.0001452,2]
[333457615,1722144653414,-722.34,0.0001452,2]
[333457616,1722144653424,-500.0,0.0001452,2]
[333457617,1722144653436,-500.0,0.0001452,2]
[333457618,1722144653451,-500.0,0.0001452,2]
[333457619,1722144653462,-505.36236804,0.0001452,2]
[333457620,1722144653473,-500.0,0.0001452,2]
[333457621,1722144653483,-500.0,0.0001452,2]
[333457622,1722144653493,-500.0,0.0001452,2]
[333457623,1722144653504,-1073.88,0.0001452,2]
[333457624,1722144653515,-526.12,0.0001452,2]
[333457625,1722144653528,-500.0,0.0001452,2]
[333457626,1722144653538,-500.0,0.0001452,2]
[333457627,1722144653548,-500.0,0.0001452,2]
[333457628,1722144653557,-642.76952483,0.0001452,2]
[333457629,1722144653566,-500.0,0.0001452,2]
[333457630,1722144653575,-500.0,0.0001452,2]
[333457631,1722144653584,-500.0,0.0001452,2]
[333457632,1722144653594,-4236.73,0.0001452,2]
[333457633,1722144653603,-500.0,0.0001452,2]
[333457634,1722144653613,-500.0,0.0001452,2]
[333457635,1722144653624,-1370.51,0.0001452,2]
[333457636,1722144653634,-500.0,0.0001452,2]
[333457637,1722144653645,-2651.7,0.0001452,2]
[333457638,1722144653655,-500.0,0.0001452,2]
[333457639,1722144653666,-500.0,0.0001452,2]
[333457640,1722144653676,-500.0,0.0001452,2]
[333457641,1722144653686,-500.0,0.0001452,2]
[333457642,1722144653696,-651.92,0.0001452,2]
[333457643,1722144653705,-513.33,0.0001452,2]
[333457644,1722144653715,-500.0,0.0001452,2]
[333457645,1722144653725,-500.0,0.0001452,2]
[333457646,1722144653736,-500.0,0.0001452,2]
[333457647,1722144653745,-507.89668988,0.0001452,2]
[333457648,1722144653756,-506.54896402,0.0001452,2]
[333457649,1722144653768,-500.0,0.0001452,2]
[333457650,1722144653778,-551.52,0.0001452,2]
[333457651,1722144653787,-500.0,0.0001452,2]
[333457652,1722144653797,-570.42,0.0001452,2]
[333457653,1722144653807,-500.0,0.0001452,2]
[333457654,1722144653817,-500.0,0.0001452,2]
[333457655,1722144653827,-588.15,0.0001452,2]
[333457656,1722144653837,-500.0,0.0001452,2]
[333457657,1722144653848,-517.95,0.0001452,2]
[333457658,1722144653859,-500.0,0.0001452,2]
[333457659,1722144653870,-500.0,0.0001452,2]
[333457660,1722144653880,-500.0,0.0001452,2]
[333457661,1722144653991,-1334.54,0.0001452,2]
[333457662,1722144654002,-1460.06,0.0001452,2]
[333457663,1722144654019,-500.0,0.0001452,2]
[333457664,1722144654029,-636.95,0.0001452,2]
[333457665,1722144654040,-500.0,0.0001452,2]
[333457666,1722144654050,-352.54964655,0.0001452,2]
[333457667,1722144654060,-152.76520851,0.0001452,2]
[333457668,1722144654070,-500.0,0.0001452,2]
[333457669,1722144654080,-507.74738584,0.0001452,2]
[333457670,1722144654090,-500.0,0.0001452,2]
[333457671,1722144654100,-962.84,0.0001452,2]
[333457672,1722144654110,-620.03597145,0.00014615,2]
[333457673,1722144654120,-1091.00549478,0.0001469,2]
[333457674,1722144654130,-994.48897622,0.0001469,2]
[333457675,1722144654140,-267.98443661,0.0001469,2]
[333457676,1722144654149,-815.78914639,0.0001469,2]
[333457677,1722144654160,-526.93611366,0.0001469,2]
[333457678,1722144654170,-30000.0,0.0001469,2]
[333457679,1722144654180,-17268.84137545,0.0001469,2]
[333457680,1722144660900,1057.58965203,0.00012,2]
[333457695,1722145645113,-497.89590681,9.702e-05,2]
[333457696,1722145654103,-25.4774555,9.702e-05,2]
[333457697,1722145654128,-155.07642353,9.999e-05,2]
[333457698,1722145654156,-188.60235743,9.999e-05,2]
[333457699,1722145654179,-155.50527536,9.999e-05,2]
[333457700,1722145654202,-273.70396931,9.999e-05,2]
[333457701,1722145654227,-160.22528916,9.999e-05,2]
[333457702,1722145654255,-155.08922694,9.999e-05,2]
[333457703,1722145654276,-180.37071684,9.999e-05,2]
[333457704,1722145654298,-942.05026838,9.999e-05,2]
[333457705,1722145654322,-201.35578271,9.999e-05,2]
[333457706,1722145654345,-193.86823709,0.0001,2]
[333457707,1722145654368,-1996.67704324,0.00011803,2]
[333457708,1722145751156,-273.37336231,9.9e-05,2]
[333457709,1722145751183,-1345.09198671,0.00011803,2]
[333457710,1722145753889,335.30451218,9.999e-05,2]
[333457711,1722145755129,-190.48257763,0.00011803,2]
[333457712,1722145758735,130.15945183,9.9e-05,2]
[333457713,1722145762110,-143.21391048,9.9e-05,2]
[333457714,1722145762133,-6707.30173472,0.00011803,2]
[333457715,1722145762155,-281.47461109,0.00011803,2]
[333457716,1722145762177,-2371.96519464,0.00012,2]
[333457717,1722145762199,-225.04706201,0.00012,2]
[333457718,1722145762222,-170.055388,0.00012272,2]
[333457719,1722145762245,-170.055388,0.00012363,2]
[333457720,1722145762268,-170.055388,0.00012454,2]
[333457721,1722145762292,-170.055388,0.00012546,2]
[333457722,1722145762316,-170.055388,0.00012637,2]
[333457723,1722145762339,-170.055388,0.00012728,2]
[333457724,1722145762361,-170.055388,0.0001282,2]
[333457725,1722145767213,228.55977106,9.9e-05,2]
[333457726,1722145767237,44.81359125,9.9e-05,2]
[333457727,1722145775456,212.72379774,9.9e-05,2]
[333457728,1722145775477,60.64956457,9.9e-05,2]
[333457729,1722145783398,273.37336231,9.9e-05,2]
[333457730,1722145791860,273.37336231,9.9e-05,2]
[333457732,1722145800974,273.37336231,9.9e-05,2]
[333457733,1722145809076,273.37336231,9.9e-05,2]
[333457734,1722145816371,180.59607657,9.999e-05,2]
[333457735,1722145816973,273.37336231,9.9e-05,2]
[333457736,1722145825126,8.10138056,9.9e-05,2]
[333457779,1722145838111,-265.27198175,9.9e-05,2]
[333457780,1722145838122,-170.055388,0.00012911,2]
[333457781,1722145838131,-168.019306,0.00013425,2]
[333457782,1722145838142,-583.19061388,0.00013598,2]
[333457783,1722145838153,-500.0,0.00013698,2]
[333457784,1722145838162,-500.0,0.00013698,2]
[333457785,1722145838171,-500.0,0.00013698,2]
[333457786,1722145838181,-500.0,0.00013698,2]
[333457787,1722145838190,-500.0,0.00013698,2]
[333457788,1722145838201,-500.0,0.00013698,2]
[333457789,1722145838210,-500.0,0.00013698,2]
[333457790,1722145838220,-500.0,0.00013698,2]
[333457791,1722145838230,-479.76588781,0.00013698,2]
[333457792,1722145838240,-500.0,0.00013698,2]
[333457793,1722145838250,-500.0,0.00013698,2]
[333457794,1722145838259,-500.0,0.00013698,2]
[333457795,1722145838268,-500.0,0.00013698,2]
[333457796,1722145838278,-500.0,0.00013698,2]
[333457797,1722145838288,-500.0,0.00013698,2]
[333457798,1722145838297,-500.0,0.00013698,2]
[333457799,1722145838307,-500.0,0.00013698,2]
[333457800,1722145838317,-500.0,0.00013698,2]
[333457801,1722145838326,-500.0,0.00013698,2]
[333457802,1722145838335,-500.0,0.00013698,2]
[333457803,1722145838344,-509.15627651,0.00013698,2]
[333457804,1722145838354,-292.64866698,0.00013698,2]
[333457805,1722145838363,-2581.44,0.00013698,2]
[333457806,1722145838372,-506.37156476,0.00013698,2]
[333457807,1722145838382,-500.0,0.00013698,2]
[333457808,1722145838392,-500.0,0.00013698,2]
[333457809,1722145838401,-802.37,0.00013698,2]
[333457810,1722145838411,-500.0,0.00013698,2]
[333457811,1722145838421,-500.0,0.00013698,2]
[333457812,1722145838430,-500.0,0.00013698,2]
[333457813,1722145838440,-500.0,0.00013698,2]
[333457814,1722145838451,-1211.44,0.00013698,2]
[333457815,1722145838460,-504.77000058,0.00013698,2]
[333457816,1722145838471,-500.0,0.00013698,2]
[333457817,1722145838480,-500.0,0.00013698,2]
[333457818,1722145838490,-500.0,0.00013698,2]
[333457819,1722145838499,-500.0,0.00013698,2]
[333457820,1722145838509,-500.0,0.00013698,2]
[333457821,1722145838518,-500.0,0.00013698,2]
[333457822,1722145838528,-1069.33,0.00013698,2]
[333457823,1722145838538,-500.0,0.00013698,2]
[333457824,1722145838548,-4145.02,0.00013698,2]
[333457825,1722145838558,-500.0,0.00013698,2]
[333457826,1722145838567,-273.02317633,0.00013698,2]
[333457849,1722145840229,-27782.88482891,0.00012,2]
[333457891,1722146829481,-224.86625011,9.51e-05,2]
[333457892,1722146829504,-167.0,9.998e-05,2]
[333457893,1722146829527,-266.70119659,9.999e-05,2]
[333457894,1722146829549,-370.31403064,9.999e-05,2]
[333457895,1722146829572,-404.01255801,9.999e-05,2]
[333457896,1722146829596,-727.08965911,9.999e-05,2]
[333457897,1722146829619,-214.73970325,9.999e-05,2]
[333457898,1722146829643,-287.60472243,0.0001,2]
[333457899,1722146829667,-798.0862133,0.000105,2]
[333457900,1722146829692,-168.350744,0.00010528,2]
[333457901,1722146829716,-521.16149035,0.00010572,2]
[333457902,1722146841171,-190.48257763,9.9e-05,2]
[333457903,1722146841195,-629.69963663,0.00010572,2]
[333457904,1722146845112,-247.13449397,0.00010572,2]
[333457905,1722146853106,-300.0,0.00010572,2]
[333457907,1722146957121,-273.37336231,9.9e-05,2]
[333457908,1722146957143,-2758.9452454,0.00010079,2]
[333457909,1722146957171,-4529.23933925,0.00010572,2]
[333457910,1722146957196,-168.350744,0.00010597,2]
[333457911,1722146957221,-250.0,0.0001064,2]
[333457912,1722146957247,-168.350744,0.00010665,2]
[333457913,1722146957273,-168.350744,0.00010734,2]
[333457914,1722146957296,-168.350744,0.00010802,2]
[333457915,1722146957320,-168.350744,0.00010871,2]
[333457916,1722146957344,-168.350744,0.00010939,2]
[333457917,1722146957366,-168.350744,0.00011008,2]
[333457918,1722146957391,-168.350744,0.00011077,2]
[333457919,1722146957416,-303.47721735,0.000119,2]
[333457920,1722146957441,-182.32110816,0.00012,2]
[333457921,1722146958111,-29654.50469243,0.00012,2]
[333457922,1722146958133,-1839.63099781,0.00012,2]
[333457923,1722146958574,208.39170716,9.999e-05,2]
[333457924,1722146962105,-133.44990889,9.999e-05,2]
[333457925,1722146962716,333.55988557,9.999e-05,2]
[333457926,1722146965404,273.37336231,9.9e-05,2]
[333457927,1722146973103,-154.66746495,0.00012814,2]
[333457928,1722146973125,-154.66746495,0.00012814,2]
[333457929,1722146973340,269.0950701,9.9e-05,2]
[333457930,1722146973362,4.27829221,9.9e-05,2]
[333457931,1722146981551,273.37336231,9.9e-05,2]
[333457932,1722146989518,273.37336231,9.9e-05,2]
[333457933,1722146997692,273.37336231,9.9e-05,2]
[333457934,1722147006042,103.24210027,9.9e-05,2]
[333457935,1722147006068,170.13126204,9.9e-05,2]
[333457936,1722147008051,79.86873796,0.0001,2]
[333458124,1722147038268,-397.15979512,9.9e-05,2]
[333458125,1722147038278,-200.02165418,9.9e-05,2]
[333458126,1722147038287,-123.78643281,0.0001,2]
[333458127,1722147038297,-2744.26878406,0.0001212,2]
[333458128,1722147038306,-155.08928424,0.0001212,2]
[333458129,1722147038318,-194.26693667,0.00012121,2]
[333458130,1722147038328,-168.019306,0.00013425,2]
[333458131,1722147038338,-153.0,0.00013441,2]
[333458132,1722147038348,-367.53930495,0.00013529,2]
[333458133,1722147038358,-154.11354546,0.00013601,2]
[333458134,1722147038368,-4637.72328953,0.00013654,2]
[333458135,1722147038378,-300.0,0.00013687,2]
[333458136,1722147038387,-20951.3286584,0.00013688,2]
[333458137,1722147038396,-500.0,0.0001369,2]
[333458138,1722147038406,-500.0,0.0001369,2]
[333458139,1722147038415,-500.0,0.0001369,2]
[333458140,1722147038425,-263.15,0.0001369,2]
[333458141,1722147038435,-251.44455409,0.00013698,5]
[333458142,1722147038445,-500.0,0.00013698,2]
[333458143,1722147038455,-500.0,0.00013698,2]
[333458144,1722147038464,-500.0,0.00013698,2]
[333458145,1722147038474,-500.0,0.00013698,2]
[333458146,1722147038485,-500.0,0.00013698,2]
[333458147,1722147038497,-500.0,0.00013698,2]
[333458148,1722147038508,-500.0,0.00013698,2]
[333458149,1722147038518,-500.0,0.00013698,2]
[333458150,1722147038527,-500.0,0.00013698,2]
[333458151,1722147038537,-500.0,0.00013698,2]
[333458152,1722147038547,-500.0,0.00013698,2]
[333458153,1722147038557,-500.0,0.00013698,2]
[333458154,1722147038567,-500.0,0.00013698,2]
[333458155,1722147038577,-500.0,0.00013698,2]
[333458156,1722147038586,-500.0,0.00013698,2]
[333458157,1722147038596,-500.0,0.00013698,2]
[333458158,1722147038606,-500.0,0.00013698,2]
[333458159,1722147038622,-500.0,0.00013698,2]
[333458160,1722147038637,-500.0,0.00013698,2]
[333458161,1722147038646,-500.0,0.00013698,2]
[333458162,1722147038656,-500.0,0.00013698,2]
[333458163,1722147038666,-500.0,0.00013698,2]
[333458164,1722147038676,-500.0,0.00013698,2]
[333458165,1722147038686,-500.65,0.00013698,2]
[333458166,1722147038695,-1160.96,0.00013698,2]
[333458167,1722147038705,-500.0,0.00013698,2]
[333458168,1722147038715,-500.0,0.00013698,2]
[333458169,1722147038725,-500.0,0.00013698,2]
[333458170,1722147038735,-441.12152893,0.00013698,2]
[333458171,1722147038746,-500.0,0.00013698,2]
[333458172,1722147038755,-500.0,0.00013698,2]
[333458173,1722147038765,-500.0,0.00013698,2]
[333458174,1722147038775,-500.0,0.00013698,2]
[333458175,1722147038785,-3972.31,0.00013698,2]
[333458176,1722147038795,-500.0,0.00013698,2]
[333458177,1722147038805,-1683.9,0.00013698,2]
[333458178,1722147038815,-500.0,0.00013698,2]
[333458179,1722147038825,-894.9,0.00013698,2]
[333458180,1722147038836,-500.0,0.00013698,2]
[333458181,1722147038846,-500.0,0.00013698,2]
[333458182,1722147038857,-500.0,0.00013698,2]
[333458183,1722147038867,-601.95,0.00013698,2]
[333458184,1722147038878,-500.0,0.00013698,2]
[333458185,1722147038888,-500.0,0.00013698,2]
[333458186,1722147038897,-500.0,0.00013698,2]
[333458187,1722147038906,-231.84636275,0.00013698,2]
[333458188,1722147038916,-500.0,0.00013698,2]
[333458189,1722147038926,-500.0,0.00013698,2]
[333458190,1722147038937,-500.0,0.00013698,2]
[333458191,1722147038948,-500.0,0.00013698,2]
[333458192,1722147038958,-500.0,0.00013698,2]
[333458193,1722147038968,-500.0,0.00013698,2]
[333458194,1722147038979,-500.0,0.00013698,2]
[333458195,1722147038990,-500.0,0.00013698,2]
[333458196,1722147039000,-622.99911301,0.00013698,2]
[333458197,1722147039011,-500.0,0.00013698,2]
[333458198,1722147039022,-502.29692296,0.00013698,2]
[333458199,1722147039032,-549.79,0.00013698,2]
[333458200,1722147039043,-500.0,0.00013698,2]
[333458201,1722147039053,-569.12686434,0.00013698,2]
[333458202,1722147039064,-659.29,0.00013698,2]
[333458203,1722147039076,-500.0,0.00013698,2]
[333458204,1722147039086,-517.53888368,0.00013698,2]
[333458205,1722147039097,-500.0,0.00013698,2]
[333458206,1722147039109,-596.99793014,0.00013698,2]
[333458207,1722147039119,-500.0,0.00013698,2]
[333458208,1722147039128,-500.0,0.00013698,2]
[333458209,1722147039139,-1212.75,0.00013698,2]
[333458210,1722147039150,-500.0,0.00013698,2]
[333458211,1722147039162,-502.11583022,0.00013698,2]
[333458212,1722147039174,-500.0,0.00013698,2]
[333458213,1722147039184,-500.0,0.00013698,2]
[333458214,1722147039200,-3711.2,0.00013698,2]
[333458215,1722147039210,-343.71266648,0.00013698,2]
[333458216,1722147039220,-500.0,0.00013698,2]
[333458217,1722147039232,-500.0,0.00013698,2]
[333458218,1722147039243,-500.0,0.00013698,2]
[333458219,1722147039254,-500.0,0.00013698,2]
[333458220,1722147039267,-500.0,0.00013698,2]
[333458221,1722147039278,-503.41,0.00013698,2]
[333458222,1722147039289,-500.0,0.00013698,2]
[333458223,1722147039299,-500.0,0.00013698,2]
[333458224,1722147039308,-616.83,0.00013698,2]
[333458225,1722147039318,-426.65820485,0.00013698,2]
[333458226,1722147039327,-500.0,0.00013698,2]
[333458227,1722147039337,-500.0,0.00013698,2]
[333458228,1722147039347,-500.0,0.00013698,2]
[333458229,1722147039359,-500.0,0.00013698,2]
[333458230,1722147039368,-569.1133503,0.00013698,2]
[333458231,1722147039378,-500.0,0.00013698,2]
[333458232,1722147039388,-855.8,0.00013698,2]
[333458233,1722147039398,-500.0,0.00013698,2]
[333458234,1722147039407,-500.0,0.00013698,2]
[333458235,1722147039418,-500.0,0.00013698,2]
[333458236,1722147039429,-500.0,0.00013698,2]
[333458237,1722147039439,-1216.71,0.00013698,2]
[333458238,1722147039450,-500.0,0.00013698,2]
[333458239,1722147039463,-528.36,0.00013698,2]
[333458240,1722147039473,-500.0,0.00013698,2]
[333458241,1722147039483,-500.0,0.00013698,2]
[333458242,1722147039493,-1112.11,0.00013698,2]
[333458243,1722147039504,-500.0,0.00013698,2]
[333458244,1722147039515,-954.38,0.00013698,2]
[333458245,1722147039525,-500.0,0.00013698,2]
[333458246,1722147039536,-2473.88,0.00013698,2]
[333458247,1722147039548,-530.79,0.00013698,2]
[333458248,1722147039558,-768.94,0.00013698,2]
[333458249,1722147039567,-500.0,0.00013698,2]
[333458250,1722147039576,-307.6958258,0.00013698,2]
[333458251,1722147039586,-500.0,0.00013698,2]
[333458252,1722147039595,-516.74181878,0.00013698,2]
[333458253,1722147039605,-500.0,0.00013698,2]
[333458254,1722147039615,-500.0,0.00013698,2]
[333458255,1722147039626,-400.50149388,0.00013698,2]
[333458256,1722147039636,-500.0,0.00013698,2]
[333458257,1722147039645,-500.0,0.00013698,2]
[333458258,1722147039655,-500.0,0.00013698,2]
[333458259,1722147039666,-500.0,0.00013698,2]
[333458260,1722147039677,-500.0,0.00013698,2]
[333458261,1722147039687,-500.0,0.00013698,2]
[333458262,1722147039697,-500.0,0.00013698,2]
[333458263,1722147039707,-161.88584969,0.00013698,2]
[333458264,1722147039716,-365.81772395,0.00013698,2]
[333458265,1722147039727,-500.0,0.00013698,2]
[333458266,1722147039738,-500.0,0.00013698,2]
[333458267,1722147039748,-500.0,0.00013698,2]
[333458268,1722147039758,-500.0,0.00013698,2]
[333458269,1722147039769,-500.0,0.00013698,2]
[333458270,1722147039779,-601.73828172,0.00013698,2]
[333458271,1722147039790,-500.0,0.00013698,2]
[333458272,1722147039800,-500.0,0.00013698,2]
[333458274,1722147039810,-500.0,0.00013698,2]
[333458275,1722147039984,-308.09915,0.00013699,2]
[333458276,1722147039995,-3000.0,0.00013699,2]
[333458277,1722147040006,-312.3112718,0.00013836,2]
[333458278,1722147040017,-1409.0,0.00013899,2]
[333458280,1722147040027,-20951.3286584,0.00013962,2]
[333458281,1722147040038,-316.98289022,0.00013972,2]
[333458282,1722147040048,-500.0,0.00013972,2]
[333458283,1722147040059,-500.0,0.00013972,2]
[333458284,1722147040069,-500.0,0.00013972,2]
[333458285,1722147040079,-500.0,0.00013972,2]
[333458286,1722147040089,-500.0,0.00013972,2]
[333458287,1722147040101,-500.0,0.00013972,2]
[333458288,1722147040112,-500.0,0.00013972,2]
[333458289,1722147040123,-300.01277677,0.00013972,2]
[333458290,1722147040133,-500.0,0.00013972,2]
[333458291,1722147040143,-500.0,0.00013972,2]
[333458293,1722147040153,-500.0,0.00013972,2]
[333458295,1722147040164,-500.0,0.00013972,2]
[333458297,1722147040174,-500.0,0.00013972,2]
[333458298,1722147040186,-500.0,0.00013972,2]
[333458299,1722147040200,-500.0,0.00013972,2]
[333458300,1722147040212,-500.0,0.00013972,2]
[333458301,1722147040224,-500.0,0.00013972,2]
[333458302,1722147040234,-500.0,0.00013972,2]
[333458303,1722147040244,-500.0,0.00013972,2]
[333458304,1722147040256,-500.0,0.00013972,2]
[333458305,1722147040266,-500.0,0.00013972,2]
[333458306,1722147040276,-500.0,0.00013972,2]
[333458307,1722147040287,-500.65,0.00013972,2]
[333458308,1722147040299,-1160.96,0.00013972,2]
[333458309,1722147040312,-496.49889074,0.00013972,2]
[333458310,1722147040325,-500.0,0.00013972,2]
[333458311,1722147040339,-500.0,0.00013972,2]
[333458312,1722147040350,-500.0,0.00013972,2]
[333458313,1722147040360,-421.59299173,0.00013972,2]
[333458314,1722147040370,-500.0,0.00013972,2]
[333458315,1722147040379,-500.0,0.00013972,2]
[333458316,1722147040389,-3972.31,0.00013972,2]
[333458317,1722147040398,-500.0,0.00013972,2]
[333458318,1722147040408,-500.0,0.00013972,2]
[333458319,1722147040417,-1683.9,0.00013972,2]
[333458321,1722147040426,-894.9,0.00013972,2]
[333458322,1722147040435,-500.0,0.00013972,2]
[333458323,1722147040445,-500.0,0.00013972,2]
[333458324,1722147040454,-500.0,0.00013972,2]
[333458325,1722147040464,-500.0,0.00013972,2]
[333458326,1722147040474,-601.95,0.00013972,2]
[333458327,1722147040484,-500.0,0.00013972,2]
[333458328,1722147040493,-500.0,0.00013972,2]
[333458329,1722147040503,-500.0,0.00013972,2]
[333458330,1722147040512,-500.0,0.00013972,2]
[333458331,1722147040522,-500.0,0.00013972,2]
[333458332,1722147040531,-500.0,0.00013972,2]
[333458333,1722147040541,-500.0,0.00013972,2]
[333458334,1722147040550,-500.0,0.00013972,2]
[333458335,1722147040559,-504.92164432,0.00013972,2]
[333458336,1722147040569,-659.29,0.00013972,2]
[333458337,1722147040578,-500.0,0.00013972,2]
[333458338,1722147040588,-500.0,0.00013972,2]
[333458339,1722147040598,-500.0,0.00013972,2]
[333458340,1722147040607,-1212.75,0.00013972,2]
[333458341,1722147040617,-500.0,0.00013972,2]
[333458342,1722147040626,-3711.2,0.00013972,2]
[333458343,1722147040638,-500.0,0.00013972,2]
[333458344,1722147040651,-500.0,0.00013972,2]
[333458345,1722147040661,-500.0,0.00013972,2]
[333458346,1722147040670,-500.0,0.00013972,2]
[333458347,1722147040679,-503.41,0.00013972,2]
[333458348,1722147040689,-500.0,0.00013972,2]
[333458349,1722147040698,-521.57371814,0.00013972,2]
[333458411,1722147043304,-180.36020442,0.00013698,2]
[333458414,1722147043314,-308.09915,0.00013699,2]
[333458416,1722147043323,-95.25628186,0.00013972,2]
[333458418,1722147043333,-2.96008842,0.00013972,2]
[333458420,1722147043344,-497.03991158,0.00013972,2]
[333458422,1722147043354,-449.50203471,0.00013972,2]
[333458424,1722147043366,-50.49796529,0.00013972,2]
[333458426,1722147043376,-500.0,0.00013972,2]
[333458428,1722147043386,-505.04884386,0.00013972,2]
[333458430,1722147043395,-179.51319085,0.00013972,2]
[333458432,1722147043407,-676.28680915,0.00013972,2]
[333458434,1722147043416,-151.0,0.00013972,2]
[333458436,1722147043425,-500.0,0.00013972,2]
[333458438,1722147043435,-500.0,0.00013972,2]
[333458440,1722147043444,-500.0,0.00013972,2]
[333458442,1722147043453,-500.0,0.00013972,2]
[333458443,1722147043463,-1216.71,0.00013972,2]
[333458444,1722147043472,-500.0,0.00013972,2]
[333458445,1722147043481,-528.36,0.00013972,2]
[333458447,1722147043490,-500.0,0.00013972,2]
[333458449,1722147043499,-473.75575188,0.00013972,2]
[333458451,1722147043511,-26.24424812,0.00013972,2]
[333458453,1722147043521,-1112.11,0.00013972,2]
[333458455,1722147043531,-500.0,0.00013972,2]
[333458456,1722147043541,-697.38775202,0.00013972,2]
[333458462,1722147046577,-273.37336231,9.9e-05,2]
[333458463,1722147046589,-500.0,0.00013698,2]
[333458464,1722147046602,-256.99224798,0.00013972,2]
[333458465,1722147046613,-506.6815708,0.00013972,2]
[333458466,1722147046624,-1184.29281891,0.00013972,2]
[333458576,1722147219833,-273.37336231,9.9e-05,2]
[333458577,1722147219857,-185.39418498,9.9e-05,2]
[333458578,1722147219880,-200.0,9.9e-05,2]
[333458579,1722147219901,-225.609275,0.0001,2]
[333458580,1722147228479,273.37336231,9.9e-05,2]
[333458581,1722147236340,273.37336231,9.9e-05,2]
[333458582,1722147244429,273.37336231,9.9e-05,2]
[333458583,1722147250807,154.9523092,9.9e-05,2]
[333458584,1722147252285,273.37336231,9.9e-05,2]
[333458585,1722147254248,2107.64902553,9.9e-05,2]
[333458586,1722147255432,154.891134,9.9e-05,2]
[333458587,1722147261223,273.37336231,9.9e-05,2]
[333458588,1722147261589,1626.2994868,9.9e-05,2]
[333458589,1722147265616,521.80533058,9.999e-05,2]
[333458590,1722147266717,19452.91939292,9.9e-05,2]
[333458591,1722147268992,218.4474307,9.9e-05,2]
[333458592,1722147269635,155.05704094,9.9e-05,2]
[333458593,1722147271324,9855.45499116,9.9e-05,2]
[333458594,1722147271387,154.66746495,9.9e-05,2]
[333458595,1722147271574,2596.89778515,9.9e-05,2]
[333458596,1722147274917,4709.89652343,9.9e-05,2]
[333458597,1722147275389,155.20482212,9.9e-05,2]
[333458598,1722147280994,163.88872073,9.999e-05,2]
[333458599,1722147282826,200.0,0.0001,2]
[333458600,1722147361296,200.0,0.0001,2]
[333458601,1722147362253,2107.64902553,0.0001,2]
[333458602,1722147362627,1626.2994868,0.0001,2]
[333458603,1722147368120,522.99776415,9.999e-05,2]
[333458604,1722147372460,271.23195313,0.0001,2]
[333458605,1722147372927,3897.45668898,0.0001,2]
[333458606,1722147378565,15374.06081025,0.0001,2]
[333458607,1722147433169,200.0,0.0001,2]
[333458608,1722147459343,2107.64902553,0.0001,2]
[333458609,1722147459596,1626.2994868,0.0001,2]
[333458610,1722147490662,206.72122862,9.999e-05,2]